fUSD/lending_fUSD_20240319
["ID","MTS","AMOUNT","RATE_DAILY","PERIOD"]
[319535990,1710832240628,-500.0,0.00054794,120]
[319535992,1710832240637,-500.0,0.00054794,120]
[319535994,1710832240647,-500.62383133,0.00054794,120]
[319535996,1710832240656,-500.0,0.00054794,120]
[319535998,1710832240665,-501.96,0.00054794,120]
[319536000,1710832240679,-500.0,0.00054794,120]
[319536002,1710832240689,-500.0,0.00054794,120]
[319536004,1710832240698,-500.0,0.00054794,120]
[319536006,1710832240707,-500.0,0.00054794,120]
[319536008,1710832240716,-904.5,0.00054794,120]
[319536009,1710832240725,-500.0,0.00054794,120]
[319536011,1710832240734,-500.0,0.00054794,120]
[319536013,1710832240744,-500.0,0.00054794,120]
[319536015,1710832240754,-500.0,0.00054794,120]
[319536017,1710832240763,-500.0,0.00054794,120]
[319536019,1710832240772,-500.0,0.00054794,120]
[319536021,1710832240782,-500.0,0.00054794,120]
[319536023,1710832240792,-500.0,0.00054794,120]
[319536025,1710832240801,-500.44790428,0.00054794,120]
[319536027,1710832240811,-500.0,0.00054794,120]
[319536029,1710832240820,-521.5,0.00054794,120]
[319536031,1710832240830,-500.0,0.00054794,120]
[319536033,1710832240839,-500.0,0.00054794,120]
[319536035,1710832240849,-500.0,0.00054794,120]
[319536037,1710832240858,-500.0,0.00054794,120]
[319536039,1710832240867,-533.33,0.00054794,120]
[319536041,1710832240877,-500.0,0.00054794,120]
[319536043,1710832240886,-500.0,0.00054794,120]
[319536045,1710832240896,-500.0,0.00054794,120]
[319536047,1710832240906,-500.0,0.00054794,120]
[319536049,1710832240916,-500.0,0.00054794,120]
[319536051,1710832240930,-500.0,0.00054794,120]
[319536053,1710832240939,-500.0,0.00054794,120]
[319536055,1710832240949,-205.67995557,0.00054794,120]
[319536057,1710832240958,-603.59950152,0.00054794,120]
[319536059,1710832240967,-500.0,0.00054794,120]
[319536061,1710832240976,-500.0,0.00054794,120]
[319536063,1710832240986,-500.0,0.00054794,120]
[319536065,1710832240996,-500.0,0.00054794,120]
[319536067,1710832241005,-500.0,0.00054794,120]
[319536069,1710832241015,-500.0,0.00054794,120]
[319536071,1710832241032,-169.40029891,0.00054794,120]
[319536073,1710832241048,-500.0,0.00054794,120]
[319536075,1710832241069,-500.0,0.00054794,120]
[319536077,1710832241083,-500.0,0.00054794,120]
[319536079,1710832241094,-500.0,0.00054794,120]
[319536081,1710832241104,-500.0,0.00054794,2]
[319536083,1710832241114,-500.0,0.00054794,120]
[319536084,1710832241123,-538.99047754,0.00054794,120]
[319536086,1710832241132,-577.62,0.00054794,120]
[319536088,1710832241142,-500.0,0.00054794,120]
[319536089,1710832241152,-500.0,0.00054794,120]
[319536090,1710832241164,-480.52123741,0.00054794,120]
[319536091,1710832241176,-500.0,0.00054794,120]
[319536092,1710832241185,-381.05900795,0.00054794,30]
[319536093,1710832241195,-501.04860444,0.00054794,120]
[319536094,1710832241206,-500.0,0.00054794,120]
[319536095,1710832241215,-666.0,0.00054794,2]
[319536096,1710832241224,-500.0,0.00054794,120]
[319536097,1710832241233,-500.0,0.00054794,120]
[319536098,1710832241242,-500.0,0.00054794,120]
[319536099,1710832241251,-500.0,0.00054794,120]
[319536100,1710832241261,-1180.61,0.00054794,120]
[319536101,1710832241271,-500.0,0.00054794,120]
[319536102,1710832241280,-500.0,0.00054794,120]
[319536103,1710832241290,-500.0,0.00054794,120]
[319536104,1710832241299,-500.0,0.00054794,120]
[319536105,1710832241309,-501.39142062,0.00054794,120]
[319536106,1710832241319,-668.61,0.00054794,120]
[319536107,1710832241329,-225.16,0.00054794,120]
[319536108,1710832241339,-500.0,0.00054794,120]
[319536109,1710832241349,-500.0,0.00054794,120]
[319536110,1710832241359,-500.0,0.00054794,120]
[319536111,1710832241369,-500.85894879,0.00054794,120]
[319536112,1710832241378,-500.0,0.00054794,120]
[319536113,1710832241387,-500.0,0.00054794,120]
[319536114,1710832241396,-500.0,0.00054794,120]
[319536115,1710832241405,-500.0,0.00054794,120]
[319536116,1710832241414,-500.0,0.00054794,120]
[319536117,1710832241425,-500.0,0.00054794,120]
[319536118,1710832241434,-500.0,0.00054794,120]
[319536119,1710832241445,-627.44,0.00054794,120]
[319536120,1710832241458,-723.78,0.00054794,120]
[319536121,1710832241476,-1132.01,0.00054794,120]
[319536122,1710832241486,-512.63275304,0.00054794,120]
[319536123,1710832241497,-541.43,0.00054794,120]
[319536124,1710832241507,-500.0,0.00054794,120]
[319536125,1710832241517,-500.0,0.00054794,120]
[319536126,1710832241526,-995.61,0.00054794,120]
[319536127,1710832241535,-759.37,0.00054794,120]
[319536128,1710832241545,-500.0,0.00054794,120]
[319536129,1710832241555,-503.71974374,0.00054794,120]
[319536130,1710832241564,-390.37777075,0.00054794,120]
[319536131,1710832241574,-798.72,0.00054794,120]
[319536132,1710832241584,-500.0,0.00054794,120]
[319536133,1710832241594,-501.16545348,0.00054794,120]
[319536134,1710832241604,-520.14,0.00054794,120]
[319536135,1710832241614,-770.56,0.00054794,120]
[319536136,1710832241622,-500.0,0.00054794,120]
[319536137,1710832241632,-500.0,0.00054794,120]
[319536138,1710832241643,-1678.31,0.00054794,120]
[319536139,1710832241652,-500.0,0.00054794,120]
[319536140,1710832241662,-500.0,0.00054794,120]
[319536141,1710832241675,-500.0,0.00054794,120]
[319536142,1710832241685,-500.0,0.00054794,120]
[319536143,1710832241694,-500.0,0.00054794,120]
[319536144,1710832241704,-500.0,0.00054794,120]
[319536145,1710832241714,-500.0,0.00054794,120]
[319536146,1710832241723,-500.0,0.00054794,120]
[319536147,1710832241732,-500.0,0.00054794,120]
[319536148,1710832241743,-500.0,0.00054794,120]
[319536149,1710832241752,-980.06,0.00054794,120]
[319536150,1710832241762,-500.0,0.00054794,120]
[319536151,1710832241771,-500.0,0.00054794,120]
[319536152,1710832241780,-500.0,0.00054794,120]
[319536153,1710832241789,-1015.56,0.00054794,120]
[319536154,1710832241799,-500.0,0.00054794,120]
[319536155,1710832241808,-500.43568038,0.00054794,120]
[319536156,1710832241817,-259.6998344,0.00054794,120]
[319536157,1710832241826,-500.0,0.00054794,120]
[319536158,1710832241836,-500.0,0.00054794,120]
[319536159,1710832241845,-500.0,0.00054794,120]
[319536160,1710832241855,-500.0,0.00054794,120]
[319536161,1710832241864,-500.0,0.00054794,120]
[319536162,1710832241873,-551.02,0.00054794,120]
[319536163,1710832241883,-233.39,0.00054794,120]
[319536164,1710832241892,-502.7707159,0.00054794,120]
[319536165,1710832241901,-500.0,0.00054794,120]
[319536166,1710832241911,-500.0,0.00054794,120]
[319536167,1710832241922,-246.95777464,0.00054794,120]
[319536168,1710832241932,-500.0,0.00054794,120]
[319536169,1710832241941,-500.0,0.00054794,120]
[319536170,1710832241950,-500.0,0.00054794,120]
[319536171,1710832241960,-735.37,0.00054794,120]
[319536172,1710832241969,-500.0,0.00054794,120]
[319536173,1710832241979,-500.0,0.00054794,120]
[319536174,1710832241989,-153.37540429,0.00054794,120]
[319536175,1710832241998,-1039.14,0.00054794,120]
[319536176,1710832242007,-500.0,0.00054794,120]
[319536177,1710832242017,-500.0,0.00054794,120]
[319536178,1710832242026,-500.0,0.00054794,120]
[319536179,1710832242036,-532.32,0.00054794,120]
[319536180,1710832242046,-751.21,0.00054794,120]
[319536181,1710832242055,-152.6231877,0.00054794,120]
[319536182,1710832242065,-587.74,0.00054794,120]
[319536183,1710832242074,-500.0,0.00054794,120]
[319536184,1710832242083,-500.0,0.00054794,120]
[319536185,1710832242092,-500.0,0.00054794,120]
[319536186,1710832242102,-593.71,0.00054794,120]
[319536187,1710832242111,-1539.97,0.00054794,120]
[319536188,1710832242120,-500.0,0.00054794,120]
[319536189,1710832242130,-500.27323206,0.00054794,120]
[319536190,1710832242139,-500.0,0.00054794,120]
[319536191,1710832242149,-500.0,0.00054794,120]
[319536192,1710832242159,-500.0,0.00054794,120]
[319536193,1710832242171,-500.0,0.00054794,120]
[319536194,1710832242181,-500.0,0.00054794,120]
[319536195,1710832242192,-500.0,0.00054794,120]
[319536196,1710832242201,-500.0,0.00054794,120]
[319536197,1710832242211,-500.0,0.00054794,120]
[319536198,1710832242221,-502.07278517,0.00054794,120]
[319536199,1710832242231,-500.0,0.00054794,120]
[319536200,1710832242240,-408.80371834,0.00054794,120]
[319536201,1710832242250,-500.0,0.00054794,120]
[319536202,1710832242259,-797.85,0.00054794,120]
[319536203,1710832242270,-500.0,0.00054794,120]
[319536204,1710832242279,-500.0,0.00054794,120]
[319536205,1710832242289,-500.0,0.00054794,120]
[319536206,1710832242298,-500.0,0.00054794,120]
[319536207,1710832242308,-500.0,0.00054794,120]
[319536208,1710832242317,-596.03,0.00054794,120]
[319536209,1710832242327,-500.0,0.00054794,120]
[319536210,1710832242336,-500.0,0.00054794,120]
[319536211,1710832242346,-506.86,0.00054794,120]
[319536212,1710832242355,-833.33,0.00054794,120]
[319536213,1710832242364,-500.0,0.00054794,120]
[319536214,1710832242374,-500.0,0.00054794,120]
[319536215,1710832242383,-500.0,0.00054794,120]
[319536216,1710832242393,-500.19288257,0.00054794,120]
[319536217,1710832242402,-500.0,0.00054794,120]
[319536218,1710832242412,-500.0,0.00054794,120]
[319536219,1710832242423,-551.34,0.00054794,120]
[319536220,1710832242433,-500.0,0.00054794,120]
[319536221,1710832242443,-500.0,0.00054794,120]
[319536222,1710832242453,-622.39,0.00054794,120]
[319536223,1710832242462,-500.0,0.00054794,120]
[319536224,1710832242471,-500.5,0.00054794,120]
[319536225,1710832242481,-500.0,0.00054794,120]
[319536226,1710832242491,-500.0,0.00054794,120]
[319536227,1710832242501,-500.0,0.00054794,120]
[319536228,1710832242510,-697.36,0.00054794,120]
[319536229,1710832242519,-500.0,0.00054794,120]
[319536230,1710832242530,-500.62711602,0.00054794,120]
[319536231,1710832242539,-1470.3,0.00054794,120]
[319536232,1710832242549,-500.0,0.00054794,120]
[319536233,1710832242558,-500.0,0.00054794,120]
[319536234,1710832242567,-642.06,0.00054794,120]
[319536235,1710832242577,-500.0,0.00054794,120]
[319536236,1710832242586,-500.0,0.00054794,120]
[319536237,1710832242595,-500.0,0.00054794,120]
[319536238,1710832242604,-500.0,0.00054794,120]
[319536239,1710832242614,-500.0,0.00054794,120]
[319536240,1710832242623,-459.58631063,0.00054794,120]
[319536241,1710832242633,-500.0,0.00054794,120]
[319536242,1710832242643,-546.45,0.00054794,120]
[319536243,1710832242652,-500.0,0.00054794,120]
[319536244,1710832242661,-756.73,0.00054794,120]
[319536245,1710832242671,-500.0,0.00054794,120]
[319536246,1710832242680,-500.0,0.00054794,120]
[319536247,1710832242689,-500.0,0.00054794,120]
[319536248,1710832242698,-500.0,0.00054794,120]
[319536249,1710832242707,-500.0,0.00054794,120]
[319536250,1710832242716,-500.0,0.00054794,120]
[319536251,1710832242726,-500.0,0.00054794,120]
[319536252,1710832242735,-500.0,0.00054794,120]
[319536253,1710832242745,-500.0,0.00054794,120]
[319536254,1710832242755,-500.0,0.00054794,120]
[319536255,1710832242765,-500.0,0.00054794,120]
[319536256,1710832242774,-500.0,0.00054794,120]
[319536258,1710832242783,-500.0,0.00054794,120]
[319536259,1710832242793,-500.0,0.00054794,120]
[319536261,1710832242802,-575.11,0.00054794,120]
[319536262,1710832242811,-1107.03,0.00054794,120]
[319536264,1710832242820,-500.0,0.00054794,120]
[319536265,1710832242829,-557.17,0.00054794,120]
[319536266,1710832242839,-693.21,0.00054794,120]
[319536269,1710832242848,-547.83,0.00054794,120]
[319536273,1710832242858,-769.2,0.00054794,120]
[319536277,1710832242867,-500.0,0.00054794,120]
[319536279,1710832242877,-1085.17,0.00054794,120]
[319536280,1710832242891,-500.0,0.00054794,120]
[319536281,1710832242902,-500.0,0.00054794,120]
[319536282,1710832242912,-500.0,0.00054794,120]
[319536283,1710832242924,-500.0,0.00054794,120]
[319536284,1710832242933,-500.0,0.00054794,120]
[319536286,1710832242942,-500.0,0.00054794,120]
[319536288,1710832242953,-500.0,0.00054794,120]
[319536289,1710832242964,-500.0,0.00054794,120]
[319536291,1710832242973,-500.0,0.00054794,120]
[319536294,1710832242983,-500.0,0.00054794,120]
[319536295,1710832242992,-500.0,0.00054794,120]
[319536297,1710832243001,-500.0,0.00054794,120]
[319536299,1710832243011,-500.0,0.00054794,120]
[319536301,1710832243021,-266.34341755,0.00054794,120]
[319536303,1710832243030,-500.0,0.00054794,120]
[319536305,1710832243039,-500.0,0.00054794,120]
[319536306,1710832243048,-500.0,0.00054794,120]
[319536307,1710832243057,-1905.07,0.00054794,120]
[319536308,1710832243066,-500.0,0.00054794,120]
[319536309,1710832243075,-500.0,0.00054794,120]
[319536310,1710832243083,-500.0,0.00054794,120]
[319536311,1710832243092,-500.0,0.00054794,120]
[319536312,1710832243101,-500.0,0.00054794,120]
[319536313,1710832243111,-500.0,0.00054794,120]
[319536314,1710832243120,-813.5,0.00054794,120]
[319536315,1710832243129,-500.57742157,0.00054794,120]
[319536316,1710832243138,-1053.52,0.00054794,120]
[319536317,1710832243148,-1553.9,0.00054794,120]
[319536318,1710832243158,-500.0,0.00054794,120]
[319536319,1710832243167,-500.0,0.00054794,2]
[319536320,1710832243180,-639.9,0.00054794,120]
[319536321,1710832243190,-500.0,0.00054794,120]
[319536322,1710832243201,-503.39407531,0.00054794,120]
[319536324,1710832243211,-500.0,0.00054794,120]
[319536325,1710832243220,-504.27099766,0.00054794,120]
[319536327,1710832243230,-700.58,0.00054794,120]
[319536328,1710832243241,-527.87,0.00054794,120]
[319536329,1710832243250,-500.0,0.00054794,120]
[319536330,1710832243260,-500.0,0.00054794,120]
[319536331,1710832243270,-1456.81,0.00054794,120]
[319536332,1710832243279,-500.0,0.00054794,120]
[319536333,1710832243288,-215.19769981,0.00054794,120]
[319536334,1710832243297,-824.24,0.00054794,120]
[319536335,1710832243306,-500.0,0.00054794,120]
[319536336,1710832243316,-500.0,0.00054794,120]
[319536337,1710832243325,-500.0,0.00054794,120]
[319536338,1710832243335,-500.0,0.00054794,120]
[319536339,1710832243344,-500.0,0.00054794,120]
[319536340,1710832243353,-1064.56,0.00054794,120]
[319536341,1710832243362,-500.0,0.00054794,120]
[319536342,1710832243371,-500.0,0.00054794,120]
[319536343,1710832243381,-500.0,0.00054794,120]
[319536344,1710832243390,-500.0,0.00054794,120]
[319536345,1710832243400,-500.0,0.00054794,120]
[319536346,1710832243409,-500.0,0.00054794,120]
[319536347,1710832243418,-730.7,0.00054794,120]
[319536348,1710832243430,-1134.64,0.00054794,120]
[319536349,1710832243440,-486.1137186,0.00054794,120]
[319536350,1710832243449,-500.0,0.00054794,120]
[319536351,1710832243458,-521.47770991,0.00054794,120]
[319536352,1710832243587,-500.0,0.00054794,120]
[319536353,1710832243599,-570.15,0.00054794,120]
[319536354,1710832243609,-564.57,0.00054794,120]
[319536355,1710832243618,-500.0,0.00054794,120]
[319536356,1710832243628,-500.0,0.00054794,120]
[319536357,1710832243637,-500.0,0.00054794,120]
[319536358,1710832243647,-500.0,0.00054794,120]
[319536360,1710832243656,-500.0,0.00054794,120]
[319536362,1710832243665,-822.4,0.00054794,120]
[319536364,1710832243678,-500.0,0.00054794,120]
[319536365,1710832243687,-771.49,0.00054794,120]
[319536366,1710832243697,-1737.85,0.00054794,120]
[319536367,1710832243706,-500.0,0.00054794,120]
[319536368,1710832243715,-500.0,0.00054794,120]
[319536369,1710832243726,-500.0,0.00054794,120]
[319536370,1710832243735,-500.0,0.00054794,120]
[319536371,1710832243744,-490.6311228,0.00054794,120]
[319536372,1710832243754,-500.0,0.00054794,120]
[319536373,1710832243763,-500.0,0.00054794,120]
[319536374,1710832243773,-500.0,0.00054794,120]
[319536375,1710832243783,-500.0,0.00054794,120]
[319536376,1710832243792,-510.62,0.00054794,120]
[319536377,1710832243801,-839.0,0.00054794,120]
[319536378,1710832243810,-500.0,0.00054794,120]
[319536379,1710832243820,-500.0,0.00054794,120]
[319536380,1710832243830,-1684.12,0.00054794,120]
[319536381,1710832243839,-500.0,0.00054794,120]
[319536382,1710832243848,-500.0,0.00054794,120]
[319536383,1710832243858,-521.34,0.00054794,120]
[319536384,1710832243868,-500.0,0.00054794,120]
[319536385,1710832243877,-500.0,0.00054794,120]
[319536386,1710832243887,-500.0,0.00054794,120]
[319536387,1710832243897,-500.0,0.00054794,120]
[319536388,1710832243906,-732.15,0.00054794,120]
[319536389,1710832243916,-500.0,0.00054794,120]
[319536390,1710832243929,-838.5,0.00054794,120]
[319536391,1710832243939,-1641.86,0.00054794,120]
[319536392,1710832243948,-500.0,0.00054794,120]
[319536393,1710832243958,-500.90697452,0.00054794,120]
[319536394,1710832243967,-890.88,0.00054794,120]
[319536395,1710832243977,-500.0,0.00054794,120]
[319536396,1710832243986,-506.01,0.00054794,120]
[319536397,1710832243996,-1340.83,0.00054794,120]
[319536398,1710832244005,-500.0,0.00054794,120]
[319536399,1710832244014,-503.6910314,0.00054794,120]
[319536400,1710832244024,-1262.33,0.00054794,120]
[319536401,1710832244034,-500.0,0.00054794,120]
[319536402,1710832244044,-1278.53,0.00054794,120]
[319536403,1710832244053,-500.0,0.00054794,120]
[319536404,1710832244063,-970.41,0.00054794,120]
[319536405,1710832244073,-500.0,0.00054794,120]
[319536406,1710832244082,-500.0,0.00054794,120]
[319536407,1710832244092,-500.0,0.00054794,120]
[319536408,1710832244102,-584.68,0.00054794,120]
[319536409,1710832244112,-500.0,0.00054794,120]
[319536410,1710832244122,-500.0,0.00054794,120]
[319536411,1710832244131,-500.0,0.00054794,120]
[319536412,1710832244140,-821.35,0.00054794,120]
[319536413,1710832244150,-500.0,0.00054794,120]
[319536414,1710832244163,-500.0,0.00054794,120]
[319536415,1710832244175,-500.0,0.00054794,120]
[319536416,1710832244184,-500.0,0.00054794,120]
[319536417,1710832244194,-500.0,0.00054794,120]
[319536418,1710832244207,-500.0,0.00054794,120]
[319536419,1710832244217,-500.0,0.00054794,120]
[319536420,1710832244227,-550.70811685,0.00054794,120]
[319536421,1710832244236,-852.31,0.00054794,120]
[319536422,1710832244246,-500.0,0.00054794,120]
[319536423,1710832244256,-500.0,0.00054794,120]
[319536424,1710832244266,-557.5,0.00054794,120]
[319536425,1710832244275,-1481.38,0.00054794,120]
[319536426,1710832244285,-500.0,0.00054794,120]
[319536427,1710832244294,-242.14817153,0.00054794,120]
[319536428,1710832244304,-500.0,0.00054794,120]
[319536429,1710832244313,-500.0,0.00054794,120]
[319536430,1710832244322,-500.0,0.00054794,120]
[319536431,1710832244332,-500.0,0.00054794,120]
[319536432,1710832244342,-500.0,0.00054794,120]
[319536433,1710832244351,-500.0,0.00054794,120]
[319536434,1710832244360,-500.0,0.00054794,120]
[319536435,1710832244369,-500.0,0.00054794,120]
[319536436,1710832244378,-500.0,0.00054794,120]
[319536437,1710832244387,-1338.34,0.00054794,120]
[319536438,1710832244397,-2058.9,0.00054794,120]
[319536439,1710832244406,-1427.82,0.00054794,120]
[319536440,1710832244415,-916.73,0.00054794,120]
[319536441,1710832244428,-514.43,0.00054794,120]
[319536442,1710832244437,-500.0,0.00054794,120]
[319536443,1710832244447,-1136.17,0.00054794,120]
[319536444,1710832244457,-931.58,0.00054794,120]
[319536445,1710832244466,-500.0,0.00054794,120]
[319536446,1710832244475,-2820.54,0.00054794,120]
[319536447,1710832244485,-500.0,0.00054794,120]
[319536448,1710832244494,-991.31,0.00054794,120]
[319536449,1710832244504,-500.0,0.00054794,120]
[319536450,1710832244513,-500.0,0.00054794,120]
[319536451,1710832244522,-2352.09,0.00054794,120]
[319536452,1710832244531,-1690.49,0.00054794,120]
[319536453,1710832244540,-865.0,0.00054794,120]
[319536454,1710832244550,-500.0,0.00054794,120]
[319536455,1710832244560,-500.0,0.00054794,120]
[319536456,1710832244569,-502.23583257,0.00054794,120]
[319536457,1710832244578,-1041.57,0.00054794,120]
[319536458,1710832244587,-500.0,0.00054794,120]
[319536459,1710832244596,-500.0,0.00054794,120]
[319536460,1710832244605,-500.0,0.00054794,120]
[319536461,1710832244614,-500.0,0.00054794,120]
[319536462,1710832244623,-500.0,0.00054794,120]
[319536463,1710832244632,-500.0,0.00054794,120]
[319536464,1710832244641,-500.0,0.00054794,120]
[319536465,1710832244650,-500.0,0.00054794,120]
[319536466,1710832244659,-500.0,0.00054794,120]
[319536467,1710832244669,-500.0,0.00054794,120]
[319536468,1710832244691,-500.0,0.00054794,120]
[319536469,1710832244713,-500.0,0.00054794,120]
[319536470,1710832244731,-500.0,0.00054794,120]
[319536471,1710832244740,-500.0,0.00054794,120]
[319536472,1710832244750,-500.0,0.00054794,120]
[319536473,1710832244759,-2597.32,0.00054794,120]
[319536474,1710832244769,-500.0,0.00054794,120]
[319536475,1710832244778,-582.43353452,0.00054794,120]
[319536476,1710832244788,-500.0,0.00054794,120]
[319536477,1710832244797,-500.0,0.00054794,120]
[319536478,1710832244807,-500.0,0.00054794,120]
[319536479,1710832244817,-500.0,0.00054794,120]
[319536480,1710832244826,-500.0,0.00054794,120]
[319536481,1710832244836,-500.0,0.00054794,120]
[319536482,1710832244845,-965.19236512,0.00054794,2]
[319536483,1710832244855,-500.0,0.00054794,120]
[319536484,1710832244865,-1110.65,0.00054794,120]
[319536485,1710832244875,-500.0,0.00054794,120]
[319536486,1710832244884,-500.0,0.00054794,120]
[319536487,1710832244894,-161.30136195,0.00054794,120]
[319536488,1710832244903,-500.0,0.00054794,120]
[319536489,1710832244914,-500.0,0.00054794,120]
[319536490,1710832244926,-500.0,0.00054794,120]
[319536491,1710832244936,-1156.43,0.00054794,120]
[319536492,1710832244945,-500.0,0.00054794,120]
[319536493,1710832244955,-2374.23,0.00054794,120]
[319536494,1710832244965,-4497.56,0.00054794,120]
[319536495,1710832244974,-500.0,0.00054794,120]
[319536496,1710832244984,-500.0,0.00054794,120]
[319536497,1710832244993,-500.0,0.00054794,120]
[319536498,1710832245003,-408.42479147,0.00054794,120]
[319536499,1710832245012,-536.27340053,0.00054794,120]
[319536500,1710832245021,-994.28,0.00054794,120]
[319536501,1710832245031,-696.51,0.00054794,120]
[319536502,1710832245041,-2215.69,0.00054794,120]
[319536503,1710832245050,-1108.16,0.00054794,120]
[319536504,1710832245060,-500.0,0.00054794,120]
[319536505,1710832245069,-500.0,0.00054794,120]
[319536506,1710832245079,-177.17,0.00054794,120]
[319536507,1710832245088,-803.39,0.00054794,120]
[319536508,1710832245097,-500.0,0.00054794,120]
[319536509,1710832245107,-541.57,0.00054794,120]
[319536510,1710832245117,-500.0,0.00054794,120]
[319536511,1710832245126,-210.45326605,0.00054794,2]
[319536512,1710832245135,-581.05757176,0.00054794,120]
[319536513,1710832245145,-624.83,0.00054794,120]
[319536514,1710832245155,-677.63,0.00054794,120]
[319536515,1710832245165,-500.0,0.00054794,2]
[319536516,1710832245177,-500.50005278,0.00054794,120]
[319536517,1710832245187,-500.0,0.00054794,120]
[319536518,1710832245198,-500.0,0.00054794,120]
[319536519,1710832245207,-500.0,0.00054794,120]
[319536520,1710832245217,-500.0,0.00054794,120]
[319536521,1710832245227,-657.85,0.00054794,120]
[319536522,1710832245236,-151.0,0.00054794,120]
[319536523,1710832245246,-558.99,0.00054794,120]
[319536524,1710832245256,-500.0,0.00054794,120]
[319536525,1710832245266,-1507.26,0.00054794,120]
[319536526,1710832245276,-500.0,0.00054794,120]
[319536527,1710832245285,-500.0,0.00054794,120]
[319536528,1710832245295,-1738.88,0.00054794,120]
[319536529,1710832245304,-500.0,0.00054794,120]
[319536530,1710832245313,-1525.03,0.00054794,120]
[319536531,1710832245322,-500.0,0.00054794,120]
[319536532,1710832245332,-1521.83,0.00054794,120]
[319536533,1710832245341,-600.27,0.00054794,120]
[319536534,1710832245350,-500.86541401,0.00054794,120]
[319536535,1710832245360,-1171.44,0.00054794,120]
[319536536,1710832245369,-622.61,0.00054794,120]
[319536537,1710832245379,-500.0,0.00054794,120]
[319536538,1710832245388,-500.0,0.00054794,120]
[319536539,1710832245398,-151.0,0.00054794,120]
[319536540,1710832245407,-500.0,0.00054794,120]
[319536541,1710832245417,-500.0,0.00054794,120]
[319536542,1710832245430,-504.26710859,0.00054794,120]
[319536543,1710832245440,-500.0,0.00054794,120]
[319536544,1710832245450,-500.0,0.00054794,120]
[319536545,1710832245459,-1288.27,0.00054794,120]
[319536546,1710832245469,-1543.96,0.00054794,120]
[319536547,1710832245479,-696.63,0.00054794,120]
[319536548,1710832245489,-2458.14,0.00054794,120]
[319536549,1710832245499,-500.0,0.00054794,120]
[319536550,1710832245510,-861.7,0.00054794,120]
[319536551,1710832245520,-1730.41,0.00054794,120]
[319536552,1710832245530,-500.0,0.00054794,120]
[319536553,1710832245540,-1240.12,0.00054794,120]
[319536554,1710832245550,-500.0,0.00054794,120]
[319536555,1710832245559,-500.0,0.00054794,120]
[319536556,1710832245569,-500.0,0.00054794,120]
[319536557,1710832245578,-2965.51,0.00054794,120]
[319536558,1710832245588,-500.0,0.00054794,120]
[319536559,1710832245597,-380.08398572,0.00054794,120]
[319536560,1710832245607,-510.18489949,0.00054794,120]
[319536561,1710832245617,-2341.0,0.00054794,120]
[319536562,1710832245626,-500.0,0.00054794,120]
[319536563,1710832245635,-500.0,0.00054794,120]
[319536564,1710832245645,-500.0,0.00054794,120]